[Event "FIDE WCCC Girls-10 2024"]
[Site "Montesilvano"]
[Date "2024.11.23"]
[Round "8.32"]
[White "Sobirova, Mumtozbegim"]
[Black "Giss, Annika"]
[Result "1-0"]
[Annotator "NA RC"]
[ECO "B34"]
[WhiteElo "1476"]
[BlackElo "1586"]
[PlyCount "43"]
[EventDate "2024.11.18"]
[EventType "swiss"]
[EventCountry "ITA"]
[SourceTitle "playchess.com"]
[Source "ChessBase"]
[SourceQuality "1"]
[TimeControl "5400+30"]

1. e4 {[%emt 0:00:04]} c5 {[%emt 0:00:08]} 2. Nf3 {[%emt 0:00:17]} Nc6 {[%emt 0:00:08]} 3. d4 {[%emt 0:00:21]} cxd4 {[%emt 0:00:07]} 4. Nxd4 {[%emt 0:00:20]} g6 {[%emt 0:00:19]} 5. Nc3 {[%emt 0:00:18]} Bg7 {[%emt 0:00:12]} 6. Be3 {[%emt 0:00:18]} Nf6 {[%emt 0:00:24]} 7. Nxc6 {[%emt 0:00:15]} bxc6 {[%emt 0:00:24]} 8. e5 {[%emt 0:00:18]} Ng8 {[%emt 0:00:56]} 9. Bd4 {[%emt 0:00:24]} c5 {[%emt 0:09:12]} 10. Bxc5 {[%emt 0:00:15]} Bxe5 {[%emt 0:00:13]} 11. Qd5 {[%emt 0:00:28]} Bxc3+ {[%emt 0:01:02]} 12. bxc3 {[%emt 0:00:08]} Rb8 {[%emt 0:09:09]} 13. Qe5 {[%emt 0:00:57]} Nf6 {[%emt 0:02:43]} 14. Qxb8 {[%emt 0:01:13]} O-O {[%emt 0:00:25]} 15. Qxa7 {[%emt 0:02:36]} d6 {[%emt 0:00:28]} 16. Bb6 {[%emt 0:01:26]} Qe8 {[%emt 0:01:52]} 17. Be3 {[%emt 0:05:22]} Qc6 {[%emt 0:02:09]} 18. c4 {[%emt 0:01:38]} e5 {[%emt 0:03:00]} 19. Qb6 {[%emt 0:05:28]} Qd7 {[%emt 0:07:46]} 20. Rd1 {[%emt 0:03:15]} Rd8 {[%emt 0:01:57]} 21. c5 {[%emt 0:01:10]} Ne8 {[%emt 0:05:18]} 22. cxd6 {[%emt 0:01:16]} 1-0

[Event "FIDE WCCC Girls-10 2024"]
[Site "Montesilvano"]
[Date "2024.11.23"]
[Round "8.33"]
[White "Macchia-Shahar, Yali"]
[Black "Vitsiuk, Aleksandra"]
[Result "1-0"]
[Annotator "NA RC"]
[ECO "C99"]
[WhiteElo "1564"]
[BlackElo "1476"]
[PlyCount "113"]
[EventDate "2024.11.18"]
[EventType "swiss"]
[EventCountry "ITA"]
[SourceTitle "playchess.com"]
[Source "ChessBase"]
[SourceQuality "1"]
[TimeControl "5400+30"]

1. e4 {[%emt 0:00:19]} e5 {[%emt 0:00:21]} 2. Nf3 {[%emt 0:00:12]} Nc6 {[%emt 0:00:58]} 3. Bb5 {[%emt 0:00:38]} a6 {[%emt 0:01:02]} 4. Ba4 {[%emt 0:00:24]} Nf6 {[%emt 0:01:53]} 5. O-O {[%emt 0:00:39]} Be7 {[%emt 0:02:08]} 6. Re1 {[%emt 0:00:38]} b5 {[%emt 0:01:34]} 7. Bb3 {[%emt 0:00:25]} d6 {[%emt 0:03:26]} 8. c3 {[%emt 0:01:10]} O-O {[%emt 0:02:52]} 9. h3 Na5 {[%emt 0:02:15]} 10. Bc2 {[%emt 0:05:47]} c5 {[%emt 0:09:10]} 11. d4 {[%emt 0:03:22]} Qc7 {[%emt 0:03:13]} 12. Nbd2 {[%emt 0:04:19]} cxd4 {[%emt 0:02:00]} 13. cxd4 {[%emt 0:01:13]} Bd7 {[%emt 0:02:09]} 14. Nf1 {[%emt 0:03:50]} Nc6 {[%emt 0:02:30]} 15. Be3 {[%emt 0:03:37]} Rfc8 {[%emt 0:02:45]} 16. Rc1 {[%emt 0:02:29]} Qb7 {[%emt 0:04:29]} 17. Ng3 {[%emt 0:03:04]} Rc7 {[%emt 0:02:34]} 18. a3 {[%emt 0:04:28]} Rac8 {[%emt 0:01:27]} 19. Qd2 {[%emt 0:04:29]} exd4 {[%emt 0:06:30]} 20. Bh6 {[%emt 0:09:48]} Ne5 {[%emt 0:08:22]} 21. Qg5 {[%emt 0:06:24]} Ng6 {[%emt 0:00:22]} 22. Nf5 {[%emt 0:05:50]} Bxf5 {[%emt 0:01:10]} 23. exf5 {[%emt 0:03:27]} gxh6 {[%emt 0:00:14]} 24. Qxh6 {[%emt 0:00:56]} Rxc2 {[%emt 0:00:30]} 25. fxg6 {[%emt 0:03:02]} fxg6 {[%emt 0:00:15]} 26. Rxc2 {[%emt 0:04:06]} Rxc2 {[%emt 0:00:16]} 27. Nxd4 {[%emt 0:00:30]} Rxb2 {[%emt 0:00:24]} 28. Ne6 {[%emt 0:00:33]} Nh5 {[%emt 0:02:17]} 29. Ng5 {[%emt 0:01:48]} Bf8 {[%emt 0:00:15]} 30. Re8 {[%emt 0:00:37]} Qg7 {[%emt 0:01:17]} 31. Rxf8+ {[%emt 0:00:15]} Kxf8 {[%emt 0:00:19]} 32. Ne6+ {[%emt 0:00:11]} Kf7 {[%emt 0:00:10]} 33. Nxg7 {[%emt 0:00:26]} Nxg7 {[%emt 0:00:09]} 34. Qf4+ {[%emt 0:00:32]} Kg8 {[%emt 0:00:13]} 35. Qxd6 {[%emt 0:00:44]} Rb1+ {[%emt 0:00:22]} 36. Kh2 {[%emt 0:00:28]} Nf5 {[%emt 0:00:31]} 37. Qxa6 {[%emt 0:01:18]} Rb2 {[%emt 0:00:23]} 38. Qc8+ {[%emt 0:00:30]} Kf7 {[%emt 0:00:13]} 39. Qc7+ {[%emt 0:00:36]} Ne7 {[%emt 0:00:11]} 40. Qb6 {[%emt 0:01:04]} Ra2 {[%emt 0:01:17]} 41. Qxb5 {[%emt 0:00:44]} Rxa3 {[%emt 0:00:09]} 42. Qb4 {[%emt 0:00:37]} Ra8 {[%emt 0:00:54]} 43. Qd4 {[%emt 0:01:15]} Rf8 {[%emt 0:00:55]} 44. Qf4+ {[%emt 0:01:41]} Kg8 {[%emt 0:00:50]} 45. Qe5 {[%emt 0:00:39]} Nf5 {[%emt 0:00:34]} 46. g4 {[%emt 0:02:20]} Ng7 {[%emt 0:00:38]} 47. f4 {[%emt 0:00:40]} Ne8 {[%emt 0:01:19]} 48. f5 {[%emt 0:00:59]} gxf5 {[%emt 0:00:14]} 49. gxf5 {[%emt 0:00:51]} Nf6 {[%emt 0:37:01]} 50. Kg3 {[%emt 0:01:15]} Nh5+ {[%emt 0:00:00]} 51. Kg4 {[%emt 0:01:01]} Ng7 {[%emt 0:00:00]} 52. f6 {[%emt 0:00:23]} Ne8 {[%emt 0:00:00]} 53. Qe6+ {[%emt 0:00:24]} Kh8 {[%emt 0:00:00]} 54. f7 {[%emt 0:00:23]} Ng7 {[%emt 0:00:00]} 55. Qf6 {[%emt 0:00:13]} h5+ {[%emt 0:00:00]} 56. Kg5 {[%emt 0:00:10]} Kh7 {[%emt 0:00:00]} 57. Qh6# {[%emt 0:00:20]} 1-0

[Event "FIDE WCCC Girls-10 2024"]
[Site "Montesilvano"]
[Date "2024.11.23"]
[Round "8.34"]
[White "Minasyan, Arina"]
[Black "Foong, Livia"]
[Result "0-1"]
[Annotator "NA RC"]
[ECO "D35"]
[WhiteElo "1545"]
[BlackElo "1461"]
[PlyCount "120"]
[EventDate "2024.11.18"]
[EventType "swiss"]
[EventCountry "ITA"]
[SourceTitle "playchess.com"]
[Source "ChessBase"]
[SourceQuality "1"]
[TimeControl "5400+30"]

1. d4 {[%emt 1:31:00]} e6 2. c4 {[%emt 0:00:00]} d5 {[%emt 0:00:18]} 3. Nf3 {[%emt 0:00:00]} Nf6 {[%emt 0:00:23]} 4. Nc3 {[%emt 0:00:00]} c5 {[%emt 0:00:30]} 5. cxd5 {[%emt 0:00:00]} exd5 {[%emt 0:00:15]} 6. Bf4 {[%emt 0:00:00]} Be6 {[%emt 0:00:51]} 7. Bc1 {[%emt 0:00:00]} Bc8 {[%emt 0:00:09]} 8. Bf4 {[%emt 0:00:00]} Be6 {[%emt 0:00:51]} 9. e3 {[%emt 0:00:00]} Be7 {[%emt 0:00:22]} 10. dxc5 {[%emt 0:00:00]} Bxc5 {[%emt 0:00:31]} 11. Bd3 {[%emt 0:00:00]} O-O {[%emt 0:00:12]} 12. O-O {[%emt 0:00:00]} Nc6 {[%emt 0:00:05]} 13. Ne5 {[%emt 0:00:00]} Nxe5 {[%emt 0:01:12]} 14. Bxe5 {[%emt 0:00:00]} Bd6 {[%emt 0:00:19]} 15. Bxd6 {[%emt 0:00:00]} Qxd6 {[%emt 0:00:12]} 16. h3 {[%emt 0:00:00]} Rfd8 {[%emt 0:00:22]} 17. Nb5 {[%emt 0:00:00]} Qb4 {[%emt 0:01:46]} 18. Nd4 {[%emt 0:00:00]} Qxb2 {[%emt 0:01:00]} 19. Rb1 {[%emt 0:00:00]} Qxa2 {[%emt 0:00:25]} 20. Rxb7 {[%emt 0:00:00]} Qa3 {[%emt 0:00:46]} 21. Nc6 {[%emt 0:00:00]} Rd7 {[%emt 0:00:58]} 22. Qb1 {[%emt 0:00:00]} Re8 {[%emt 0:01:12]} 23. Rb8 {[%emt 0:00:37]} h6 {[%emt 0:02:35]} 24. Rxe8+ {[%emt 0:03:33]} Nxe8 {[%emt 0:00:20]} 25. Qb8 {[%emt 0:00:59]} Kf8 {[%emt 0:01:51]} 26. Ne5 {[%emt 0:03:47]} Rc7 {[%emt 0:03:07]} 27. Rb1 {[%emt 0:03:31]} Qc3 {[%emt 0:00:44]} 28. Qb4+ {[%emt 0:00:30]} Qxb4 {[%emt 0:00:49]} 29. Rxb4 {[%emt 0:00:04]} Nd6 {[%emt 0:00:35]} 30. Kf1 {[%emt 0:00:57]} f6 {[%emt 0:00:59]} 31. Rb8+ {[%emt 0:00:28]} Rc8 {[%emt 0:00:40]} 32. Ng6+ {[%emt 0:00:27]} Kf7 {[%emt 0:00:39]} 33. Nh8+ {[%emt 0:00:31]} Kg8 {[%emt 0:00:53]} 34. Rxc8+ {[%emt 0:00:21]} Bxc8 {[%emt 0:00:34]} 35. Ng6 {[%emt 0:00:08]} a5 {[%emt 0:00:52]} 36. Nf4 {[%emt 0:00:12]} Bb7 {[%emt 0:00:44]} 37. g3 {[%emt 0:00:54]} a4 {[%emt 0:00:46]} 38. Bc2 {[%emt 0:00:19]} a3 {[%emt 0:00:41]} 39. Bb3 {[%emt 0:00:06]} Nb5 {[%emt 0:01:30]} 40. Ne2 {[%emt 0:00:52]} Kf8 {[%emt 0:00:54]} 41. Ke1 {[%emt 0:00:13]} Ke7 {[%emt 0:00:27]} 42. Kd2 {[%emt 0:00:06]} Kd6 {[%emt 0:00:47]} 43. Kc2 {[%emt 0:00:16]} Kc5 {[%emt 0:00:14]} 44. Ba2 {[%emt 0:02:02]} d4 {[%emt 0:01:04]} 45. exd4+ {[%emt 0:00:29]} Nxd4+ {[%emt 0:00:12]} 46. Nxd4 {[%emt 0:00:20]} Kxd4 {[%emt 0:00:11]} 47. Kd2 {[%emt 0:00:30]} Bd5 {[%emt 0:00:39]} 48. Bxd5 {[%emt 0:00:13]} Kxd5 {[%emt 0:00:13]} 49. Kc3 {[%emt 0:00:05]} Ke4 {[%emt 0:00:37]} 50. Kc2 {[%emt 0:00:09]} Kf3 {[%emt 0:00:21]} 51. Kb3 {[%emt 0:00:03]} Kxf2 {[%emt 0:00:29]} 52. Kxa3 {[%emt 0:00:03]} Kxg3 {[%emt 0:00:18]} 53. Kb3 {[%emt 0:00:06]} Kxh3 {[%emt 0:00:07]} 54. Kc3 {[%emt 0:00:02]} g5 {[%emt 0:00:13]} 55. Kd3 {[%emt 0:00:04]} g4 {[%emt 0:00:04]} 56. Ke3 {[%emt 0:00:04]} g3 {[%emt 0:02:14]} 57. Kf3 {[%emt 0:00:10]} Kh2 {[%emt 0:00:17]} 58. Kg4 {[%emt 0:00:07]} g2 {[%emt 0:00:27]} 59. Kh4 {[%emt 0:00:07]} g1=Q {[%emt 0:00:11]} 60. Kh5 {[%emt 0:00:03]} Qg5# {[%emt 0:00:19]} 0-1

[Event "FIDE WCCC Girls-10 2024"]
[Site "Montesilvano"]
[Date "2024.11.23"]
[Round "8.35"]
[White "Li, Grace"]
[Black "Aragonda, Sahasra"]
[Result "1/2-1/2"]
[Annotator "NA RC"]
[ECO "B02"]
[WhiteElo "1529"]
[BlackElo "1526"]
[PlyCount "58"]
[EventDate "2024.11.18"]
[EventType "swiss"]
[EventCountry "ITA"]
[SourceTitle "playchess.com"]
[Source "ChessBase"]
[SourceQuality "1"]
[TimeControl "5400+30"]

1. e4 {[%emt 0:00:03]} Nf6 {[%emt 0:00:10]} 2. Nc3 {[%emt 0:00:22]} d5 {[%emt 0:00:13]} 3. e5 {[%emt 0:03:04]} d4 {[%emt 0:00:23]} 4. exf6 {[%emt 0:01:49]} dxc3 {[%emt 0:00:16]} 5. Be2 {[%emt 0:04:16]} cxd2+ {[%emt 0:03:27]} 6. Bxd2 {[%emt 0:02:23]} exf6 {[%emt 0:02:41]} 7. Bc3 {[%emt 0:03:39]} Qxd1+ {[%emt 0:00:43]} 8. Rxd1 {[%emt 0:00:25]} Bd6 {[%emt 0:02:20]} 9. Nf3 {[%emt 0:01:21]} O-O {[%emt 0:01:17]} 10. O-O {[%emt 0:00:19]} Bg4 {[%emt 0:03:30]} 11. h3 {[%emt 0:00:42]} Be6 {[%emt 0:03:22]} 12. Rfe1 {[%emt 0:01:10]} Nd7 {[%emt 0:03:24]} 13. Nd4 {[%emt 0:07:26]} Nb6 {[%emt 0:15:04]} 14. Nxe6 {[%emt 0:00:50]} fxe6 {[%emt 0:00:34]} 15. Bf3 {[%emt 0:00:22]} e5 {[%emt 0:05:42]} 16. Bxb7 {[%emt 0:01:16]} Rab8 {[%emt 0:02:13]} 17. Bc6 {[%emt 0:01:03]} Rfd8 {[%emt 0:10:09]} 18. a4 {[%emt 0:10:25]} Nd7 {[%emt 0:05:58]} 19. b3 {[%emt 0:19:55]} Kh8 {[%emt 0:04:53]} 20. Rd2 {[%emt 0:03:46]} Rb6 {[%emt 0:04:34]} 21. Bf3 {[%emt 0:03:46]} Nc5 {[%emt 0:04:27]} 22. a5 {[%emt 0:05:17]} Rbb8 {[%emt 0:02:10]} 23. Ra1 {[%emt 0:08:06]} Re8 {[%emt 0:03:33]} 24. Bc6 {[%emt 0:01:09]} Re7 {[%emt 0:01:26]} 25. Rad1 {[%emt 0:02:59]} Na6 {[%emt 0:05:13]} 26. Bb2 {[%emt 0:02:16]} Nb4 {[%emt 0:01:51]} 27. Ba4 {[%emt 0:00:37]} h6 {[%emt 0:01:23]} 28. Ba3 {[%emt 0:00:56]} e4 {[%emt 0:03:18]} 29. Rd4 {[%emt 0:04:02]} Bc5 {[%emt 0:03:39]} 1/2-1/2

[Event "FIDE WCCC Girls-10 2024"]
[Site "Montesilvano"]
[Date "2024.11.23"]
[Round "8.36"]
[White "Khelfallah, Ikhlas"]
[Black "Abibulla, Inzhu"]
[Result "0-1"]
[Annotator "NA RC"]
[ECO "B08"]
[WhiteElo "1449"]
[BlackElo "1499"]
[PlyCount "100"]
[EventDate "2024.11.18"]
[EventType "swiss"]
[EventCountry "ITA"]
[SourceTitle "playchess.com"]
[Source "ChessBase"]
[SourceQuality "1"]
[TimeControl "5400+30"]

1. e4 {[%emt 0:00:04]} d6 {[%emt 0:00:19]} 2. d4 {[%emt 0:01:10]} Nf6 {[%emt 0:00:10]} 3. Nc3 {[%emt 0:00:19]} g6 {[%emt 0:00:10]} 4. Nf3 {[%emt 0:00:50]} Bg7 {[%emt 0:00:15]} 5. Be2 {[%emt 0:01:09]} O-O {[%emt 0:01:13]} 6. O-O {[%emt 0:00:16]} Bg4 {[%emt 0:02:51]} 7. h3 {[%emt 0:00:15]} Bxf3 {[%emt 0:00:18]} 8. Bxf3 {[%emt 0:00:19]} e5 {[%emt 0:00:40]} 9. Bg5 {[%emt 0:00:55]} exd4 {[%emt 0:00:40]} 10. Qxd4 {[%emt 0:05:41]} Nc6 {[%emt 0:00:50]} 11. Qd2 {[%emt 0:01:32]} Qd7 {[%emt 0:05:12]} 12. Bh6 {[%emt 0:07:59]} Rad8 {[%emt 0:02:31]} 13. Rad1 {[%emt 0:03:14]} Rfe8 {[%emt 0:01:59]} 14. Rfe1 {[%emt 0:01:48]} a6 {[%emt 0:00:36]} 15. a4 {[%emt 0:00:20]} Ne5 {[%emt 0:03:14]} 16. Be2 {[%emt 0:02:31]} Nc6 {[%emt 0:01:44]} 17. Bf1 {[%emt 0:03:50]} Nb4 {[%emt 0:07:36]} 18. Bxg7 {[%emt 0:05:24]} Kxg7 {[%emt 0:00:13]} 19. Qc1 {[%emt 0:01:53]} Nc6 {[%emt 0:01:28]} 20. Bc4 {[%emt 0:09:25]} Ne5 {[%emt 0:03:43]} 21. Ba2 {[%emt 0:03:17]} b5 {[%emt 0:09:26]} 22. axb5 {[%emt 0:03:37]} axb5 {[%emt 0:00:08]} 23. Nd5 {[%emt 0:01:13]} Nxd5 {[%emt 0:03:10]} 24. Bxd5 {[%emt 0:01:21]} c6 {[%emt 0:02:08]} 25. Bb3 {[%emt 0:00:33]} Qe7 {[%emt 0:01:13]} 26. Qf4 {[%emt 0:08:50]} c5 {[%emt 0:07:29]} 27. Bd5 {[%emt 0:03:39]} Rf8 {[%emt 0:02:44]} 28. Qg3 {[%emt 0:02:43]} b4 {[%emt 0:01:54]} 29. f4 {[%emt 0:01:18]} Nd7 {[%emt 0:00:20]} 30. e5 {[%emt 0:01:34]} dxe5 {[%emt 0:00:25]} 31. fxe5 {[%emt 0:01:10]} Nb6 {[%emt 0:01:10]} 32. Bf3 {[%emt 0:00:40]} Rxd1 {[%emt 0:00:31]} 33. Rxd1 {[%emt 0:00:27]} Nc4 {[%emt 0:01:23]} 34. Re1 {[%emt 0:01:07]} Nxb2 {[%emt 0:00:43]} 35. e6 {[%emt 0:00:16]} fxe6 {[%emt 0:03:32]} 36. Bd5 {[%emt 0:04:33]} Qf6 {[%emt 0:01:33]} 37. Rxe6 {[%emt 0:05:51]} Qd4+ {[%emt 0:00:54]} 38. Kh2 {[%emt 0:01:32]} Qxd5 {[%emt 0:01:05]} 39. Rd6 {[%emt 0:00:39]} Qf5 {[%emt 0:00:35]} 40. Rd1 {[%emt 0:01:23]} Qf4 {[%emt 0:00:33]} 41. Qxf4 {[%emt 0:00:20]} Rxf4 {[%emt 0:00:07]} 42. Rd7+ {[%emt 0:00:31]} Rf7 {[%emt 0:00:21]} 43. Rd5 {[%emt 0:00:11]} c4 {[%emt 0:00:30]} 44. Rb5 {[%emt 0:00:23]} Rf2 {[%emt 0:00:15]} 45. Rxb4 {[%emt 0:00:20]} Rxc2 {[%emt 0:00:09]} 46. Rb7+ {[%emt 0:00:05]} Kh6 {[%emt 0:00:25]} 47. Kg3 {[%emt 0:00:24]} c3 {[%emt 0:00:05]} 48. Rb3 {[%emt 0:00:21]} Nd1 {[%emt 0:00:37]} 49. Kh4 {[%emt 0:00:51]} Rxg2 {[%emt 0:00:31]} 50. Rxc3 {[%emt 0:00:16]} g5# {[%emt 0:00:19]} 0-1

[Event "FIDE WCCC Girls-10 2024"]
[Site "Montesilvano"]
[Date "2024.11.23"]
[Round "8.39"]
[White "Serradell Munoz, Silvia"]
[Black "Muradli, Sabira"]
[Result "1-0"]
[Annotator "NA RC"]
[ECO "C47"]
[WhiteElo "1670"]
[BlackElo "1430"]
[PlyCount "165"]
[EventDate "2024.11.18"]
[EventType "swiss"]
[EventCountry "ITA"]
[SourceTitle "playchess.com"]
[Source "ChessBase"]
[SourceQuality "1"]
[TimeControl "5400+30"]

1. e4 {[%emt 0:00:13]} e5 {[%emt 0:00:52]} 2. Nf3 {[%emt 0:00:45]} Nc6 {[%emt 0:00:05]} 3. Nc3 {[%emt 0:00:32]} Nf6 {[%emt 0:00:04]} 4. g3 {[%emt 0:00:45]} Bb4 {[%emt 0:00:30]} 5. Bg2 {[%emt 0:01:16]} O-O {[%emt 0:00:32]} 6. O-O {[%emt 0:00:58]} Bxc3 {[%emt 0:00:12]} 7. bxc3 {[%emt 0:00:23]} Nxe4 {[%emt 0:00:04]} 8. Nxe5 {[%emt 0:02:04]} Nxe5 {[%emt 0:01:25]} 9. Bxe4 {[%emt 0:00:43]} d5 {[%emt 0:00:16]} 10. Bg2 {[%emt 0:00:53]} Re8 {[%emt 0:03:10]} 11. d4 {[%emt 0:10:44]} Nc4 {[%emt 0:02:13]} 12. Re1 {[%emt 0:01:14]} Be6 {[%emt 0:04:13]} 13. Bf1 {[%emt 0:05:51]} Qf6 {[%emt 0:07:20]} 14. Bf4 {[%emt 0:03:08]} Nd6 {[%emt 0:03:59]} 15. Rb1 {[%emt 0:02:29]} b6 {[%emt 0:02:34]} 16. Bb5 {[%emt 0:05:16]} Nxb5 {[%emt 0:01:35]} 17. Rxb5 {[%emt 0:02:06]} c6 {[%emt 0:02:29]} 18. Rb1 {[%emt 0:00:31]} Bh3 {[%emt 0:00:32]} 19. Qh5 {[%emt 0:02:58]} Qf5 {[%emt 0:00:15]} 20. Qxf5 {[%emt 0:01:46]} Bxf5 {[%emt 0:00:04]} 21. Rbc1 {[%emt 0:01:47]} Rxe1+ {[%emt 0:00:22]} 22. Rxe1 {[%emt 0:00:20]} Bxc2 {[%emt 0:00:06]} 23. Re7 {[%emt 0:00:36]} Bf5 {[%emt 0:01:19]} 24. Rc7 {[%emt 0:03:39]} h6 {[%emt 0:01:54]} 25. Rxc6 {[%emt 0:00:33]} Be4 {[%emt 0:03:05]} 26. Rc7 {[%emt 0:01:46]} Bf3 {[%emt 0:00:39]} 27. Re7 {[%emt 0:00:37]} Bg4 {[%emt 0:05:41]} 28. Kg2 {[%emt 0:00:41]} Be6 {[%emt 0:00:34]} 29. Kf3 {[%emt 0:02:31]} Bf5 {[%emt 0:09:00]} 30. Rc7 {[%emt 0:03:21]} Bd3 {[%emt 0:07:17]} 31. Rb7 {[%emt 0:02:52]} Bc4 {[%emt 0:02:09]} 32. a3 {[%emt 0:04:02]} Ba6 {[%emt 0:03:39]} 33. Rb8+ {[%emt 0:01:09]} Rxb8 {[%emt 0:00:04]} 34. Bxb8 {[%emt 0:00:40]} Bc4 {[%emt 0:00:21]} 35. Bxa7 {[%emt 0:00:15]} b5 {[%emt 0:00:02]} 36. Kf4 {[%emt 0:00:51]} f6 {[%emt 0:01:09]} 37. Bc5 {[%emt 0:01:05]} Kf7 {[%emt 0:02:01]} 38. f3 {[%emt 0:02:15]} g5+ {[%emt 0:02:37]} 39. Kg4 {[%emt 0:05:17]} Kg6 {[%emt 0:02:29]} 40. h4 {[%emt 0:03:03]} Bf1 {[%emt 0:00:42]} 41. h5+ {[%emt 0:01:19]} Kf7 {[%emt 0:00:14]} 42. Kf5 {[%emt 0:02:00]} Bd3+ {[%emt 0:00:07]} 43. Kg4 {[%emt 0:00:18]} Ke6 {[%emt 0:00:29]} 44. Kh3 {[%emt 0:00:33]} Kf7 {[%emt 0:00:41]} 45. Bd6 {[%emt 0:00:52]} Bf1+ {[%emt 0:00:39]} 46. Kh2 {[%emt 0:00:39]} Be2 {[%emt 0:00:14]} 47. Kg2 {[%emt 0:01:29]} g4 {[%emt 0:00:45]} 48. f4 {[%emt 0:00:59]} f5 {[%emt 0:00:30]} 49. Kf2 {[%emt 0:00:25]} Bc4 {[%emt 0:00:41]} 50. Ke3 {[%emt 0:01:07]} Kg7 {[%emt 0:00:32]} 51. Kd2 {[%emt 0:02:10]} Kh7 {[%emt 0:00:19]} 52. Bf8 {[%emt 0:01:57]} Bb3 {[%emt 0:00:18]} 53. Kc1 {[%emt 0:00:40]} Ba2 {[%emt 0:00:23]} 54. Kc2 {[%emt 0:00:20]} Bc4 {[%emt 0:00:10]} 55. Kb2 {[%emt 0:00:11]} Bd3 {[%emt 0:00:16]} 56. Kb3 {[%emt 0:00:47]} Bc4+ {[%emt 0:01:16]} 57. Kb4 {[%emt 0:02:24]} Kg8 {[%emt 0:00:41]} 58. Bxh6 {[%emt 0:00:18]} Kh7 {[%emt 0:00:03]} 59. Bg5 {[%emt 0:00:14]} Kg7 {[%emt 0:00:06]} 60. Kc5 {[%emt 0:00:46]} Kh7 {[%emt 0:00:07]} 61. Kd6 {[%emt 0:00:19]} Kg7 {[%emt 0:01:29]} 62. Ke6 {[%emt 0:00:32]} Kh7 {[%emt 0:01:23]} 63. Kxf5 {[%emt 0:00:22]} Be2 {[%emt 0:00:08]} 64. Ke6 {[%emt 0:00:28]} Bf3 {[%emt 0:00:12]} 65. Ke7 {[%emt 0:00:49]} Be4 {[%emt 0:01:53]} 66. Ke6 {[%emt 0:00:21]} Kg7 {[%emt 0:00:20]} 67. h6+ {[%emt 0:00:29]} Kg6 {[%emt 0:00:26]} 68. Ke7 {[%emt 0:00:33]} Bf5 {[%emt 0:00:22]} 69. Kd6 {[%emt 0:00:11]} Be4 {[%emt 0:00:32]} 70. Kc5 {[%emt 0:00:09]} Bd3 {[%emt 0:00:16]} 71. Kxd5 {[%emt 0:00:07]} Bc4+ {[%emt 0:00:03]} 72. Ke5 {[%emt 0:00:17]} Kh7 {[%emt 0:00:31]} 73. d5 {[%emt 0:00:20]} b4 {[%emt 0:00:14]} 74. cxb4 {[%emt 0:00:14]} Bd3 {[%emt 0:00:18]} 75. d6 {[%emt 0:00:15]} Bf5 {[%emt 0:00:12]} 76. b5 {[%emt 0:00:10]} Bd7 {[%emt 0:00:28]} 77. b6 {[%emt 0:00:10]} Bc6 {[%emt 0:00:04]} 78. b7 {[%emt 0:00:22]} Bxb7 {[%emt 0:00:05]} 79. d7 {[%emt 0:00:06]} Bc8 {[%emt 0:00:14]} 80. dxc8=Q {[%emt 0:00:28]} Kg6 {[%emt 0:00:09]} 81. Qe8+ {[%emt 0:00:08]} Kh7 {[%emt 0:00:07]} 82. Qf7+ {[%emt 0:00:11]} Kh8 {[%emt 0:00:04]} 83. Bf6# {[%emt 0:00:05]} 1-0

[Event "FIDE WCCC Girls-10 2024"]
[Site "Montesilvano"]
[Date "2024.11.23"]
[Round "8.40"]
[White "Song, Rina"]
[Black "Camacho Chavez, Nirvana"]
[Result "1-0"]
[Annotator "NA RC"]
[ECO "B13"]
[WhiteElo "1599"]
[BlackElo "1638"]
[PlyCount "131"]
[EventDate "2024.11.18"]
[EventType "swiss"]
[EventCountry "ITA"]
[SourceTitle "playchess.com"]
[Source "ChessBase"]
[SourceQuality "1"]
[TimeControl "5400+30"]

1. e4 {[%emt 0:00:06]} c6 {[%emt 0:00:02]} 2. d4 {[%emt 0:00:09]} d5 {[%emt 0:00:06]} 3. exd5 {[%emt 0:00:08]} cxd5 {[%emt 0:00:07]} 4. Bd3 {[%emt 0:00:12]} Nc6 {[%emt 0:00:52]} 5. c3 {[%emt 0:00:45]} Qc7 {[%emt 0:00:39]} 6. h3 {[%emt 0:00:53]} Nf6 {[%emt 0:01:20]} 7. Ne2 {[%emt 0:01:16]} g6 {[%emt 0:00:20]} 8. Qc2 {[%emt 0:00:12]} Bg7 {[%emt 0:01:21]} 9. Bf4 {[%emt 0:00:53]} e5 {[%emt 0:01:05]} 10. dxe5 {[%emt 0:00:28]} Nxe5 {[%emt 0:00:54]} 11. O-O {[%emt 0:01:14]} O-O {[%emt 0:00:48]} 12. Nd2 {[%emt 0:01:40]} Re8 {[%emt 0:03:17]} 13. Nd4 {[%emt 0:02:35]} Qb6 {[%emt 0:03:33]} 14. Rfe1 {[%emt 0:02:10]} Nfd7 {[%emt 0:03:37]} 15. N2f3 {[%emt 0:02:15]} Nxf3+ {[%emt 0:00:25]} 16. Nxf3 {[%emt 0:00:13]} Rf8 {[%emt 0:02:50]} 17. Qd2 {[%emt 0:08:39]} Nf6 {[%emt 0:04:35]} 18. Be3 {[%emt 0:01:07]} Qd8 {[%emt 0:02:12]} 19. Bh6 {[%emt 0:00:16]} b6 {[%emt 0:03:59]} 20. Nd4 {[%emt 0:01:34]} Bb7 {[%emt 0:01:01]} 21. Bxg7 {[%emt 0:01:26]} Kxg7 {[%emt 0:00:31]} 22. Qg5 {[%emt 0:00:56]} Kh8 {[%emt 0:08:17]} 23. Qh6 {[%emt 0:02:22]} Ng8 {[%emt 0:03:14]} 24. Qf4 {[%emt 0:01:31]} Qf6 {[%emt 0:07:26]} 25. Qxf6+ {[%emt 0:03:41]} Nxf6 {[%emt 0:00:12]} 26. Re7 {[%emt 0:00:42]} Rab8 {[%emt 0:01:06]} 27. Nb5 {[%emt 0:01:47]} a6 {[%emt 0:01:23]} 28. Nd6 {[%emt 0:01:56]} Bc6 {[%emt 0:02:25]} 29. Nxf7+ {[%emt 0:00:29]} Kg8 {[%emt 0:02:10]} 30. Nh6+ {[%emt 0:00:24]} Kh8 {[%emt 0:00:34]} 31. Rae1 {[%emt 0:01:56]} a5 {[%emt 0:02:04]} 32. Rc7 {[%emt 0:02:11]} Rbc8 {[%emt 0:01:46]} 33. Rxc8 {[%emt 0:02:06]} Rxc8 {[%emt 0:00:12]} 34. Nf7+ {[%emt 0:01:08]} Kg7 {[%emt 0:01:58]} 35. Nd6 {[%emt 0:00:18]} Rd8 {[%emt 0:01:15]} 36. Re6 {[%emt 0:00:46]} Nh5 {[%emt 0:03:33]} 37. Nf5+ {[%emt 0:00:41]} gxf5 {[%emt 0:01:45]} 38. Rxc6 {[%emt 0:00:14]} d4 {[%emt 0:02:13]} 39. cxd4 {[%emt 0:00:53]} Rxd4 {[%emt 0:00:43]} 40. Bxf5 {[%emt 0:00:45]} b5 {[%emt 0:01:03]} 41. Rc7+ {[%emt 0:00:00]} Kf6 {[%emt 0:00:41]} 42. Rxh7 {[%emt 0:00:00]} Ng7 {[%emt 0:00:46]} 43. Bg4 {[%emt 0:00:00]} Rd2 {[%emt 0:00:15]} 44. Rh6+ {[%emt 0:00:25]} Ke5 {[%emt 0:01:38]} 45. Rg6 {[%emt 0:01:13]} Nf5 {[%emt 0:00:33]} 46. Rg5 {[%emt 0:00:30]} Rxb2 {[%emt 0:00:36]} 47. Rxf5+ {[%emt 0:00:09]} Kd4 {[%emt 0:00:57]} 48. Bf3 {[%emt 0:01:21]} a4 {[%emt 0:00:46]} 49. Bd5 {[%emt 0:01:57]} Kc3 {[%emt 0:01:45]} 50. Rf3+ {[%emt 0:01:36]} Kd4 {[%emt 0:00:39]} 51. Bg8 {[%emt 0:00:21]} b4 {[%emt 0:02:04]} 52. h4 {[%emt 0:01:34]} b3 {[%emt 0:00:11]} 53. axb3 {[%emt 0:00:22]} a3 {[%emt 0:00:12]} 54. b4 {[%emt 0:00:04]} a2 {[%emt 0:00:25]} 55. Bxa2 {[%emt 0:00:07]} Rxa2 {[%emt 0:00:07]} 56. h5 {[%emt 0:00:09]} Rb2 {[%emt 0:30:02]} 57. h6 {[%emt 0:00:12]} Ra2 {[%emt 0:00:00]} 58. h7 {[%emt 0:00:13]} Ra8 {[%emt 0:00:00]} 59. Rh3 {[%emt 0:00:21]} Rh8 {[%emt 0:00:00]} 60. b5 {[%emt 0:00:18]} Kc5 {[%emt 0:00:00]} 61. Rh5+ {[%emt 0:00:13]} Kb6 {[%emt 0:00:00]} 62. f4 {[%emt 0:00:24]} Kb7 {[%emt 0:00:00]} 63. f5 {[%emt 0:00:08]} Kb6 {[%emt 0:00:00]} 64. f6 {[%emt 0:57:56]} Rxh7 {[%emt 0:00:00]} 65. Rxh7 {[%emt 0:00:00]} Kxb5 {[%emt 0:00:00]} 66. Rc7 {[%emt 0:00:00]} 1-0